Cogmind - Beta 14 @@@ ROGUE MODE // 2024.10.03 @ 19:41:28 Player: OATM3AL Result: Destroyed by H-66 Slayer with Gauss Rifle Performance ------------- Evolutions (4) 2000 Regions Visited (6) 1200 Robots Destroyed (131) 655 Value Destroyed (3728) 3728 Prototype IDs (1) 20 Alien Tech Used (0) 0 Bonus (303) 303 TOTAL SCORE: 7906 Bonus ------- High Alert Combat Kills 22 Follower Combat Kills 281 Cogmind --------- Core Integrity 0/850 Matter 18/300 Energy 59/100 System Corruption 0% Temperature Cool (0) Movement Walking (120) Location -6/Factory Parts ------- > --- POWER (1) -------- (None) > --- PROPULSION (2) --- Carbon-fiber Leg Carbon-fiber Leg > --- UTILITY (9) ------ Coolant Injector Machine Analyzer Visual Processing Unit Advanced Signal Interpreter Advanced Targeting Computer Target Analyzer Hacking Suite > --- WEAPON (3) ------- Chainsword > --- INVENTORY (5) ---- Advanced ECM Suite Dynamic Insulation System Peak State ------------ > --- POWER ------------ Fusion Compressor > --- PROPULSION ------- Improved VSS Leg Improved VSS Leg > --- UTILITY ---------- Coolant Injector Machine Analyzer Visual Processing Unit Advanced Signal Interpreter Advanced Targeting Computer Target Analyzer Target Analyzer Weapon Cycler Hacking Suite > --- WEAPON ----------- Hypervelocity Gauss Rifle > --- INVENTORY -------- Advanced ECM Suite Dynamic Insulation System Chainsword [Rating: 51] Favorites ----------- Power Improved Ion Engine Engine Improved Ion Engine Power Core Light Nuclear Core Propulsion Light Treads Treads Light Treads Leg Improved VSS Leg Utility Large Storage Unit Device Cryofiber Web Storage Large Storage Unit Processor Signal Interpreter Hackware Hacking Suite Weapon Improved Light Cannon Energy Gun Beam Rifle Energy Cannon Ion Cannon Ballistic Gun Assault Rifle Ballistic Cannon Improved Light Cannon Launcher Grenade Launcher Slashing Weapon Katana Build | -11 -10 -9 -9 -8 -7 -6 ------- Run | Yrd Mat Mat Sto Mat Fac Fac Slots Evolved 8 | . . 2 . 2 2 2 Power . | . . . . . . . Propulsion . | . . . . . . . Utility 7 | . . 2 . 2 1 2 Weapon 1 | . . . . . 1 . Parts Attached 127 | 7 2 27 16 24 34 17 Power 19 | 1 . 5 3 4 3 3 Engine 14 | 1 . 5 3 3 1 1 Core 5 | . . . . 1 2 2 Reactor . | . . . . . . . Propulsion 23 | 2 . 6 4 3 4 4 Treads 19 | 2 . 6 4 3 4 . Leg 4 | . . . . . . 4 Wheel . | . . . . . . . Hover . | . . . . . . . Flight . | . . . . . . . Utility 42 | 1 2 7 4 9 12 7 Device 17 | . 1 5 2 3 5 1 Storage 4 | 1 . 2 . 1 . . Processor 19 | . 1 . 2 4 7 5 Hackware 2 | . . . . 1 . 1 Protection . | . . . . . . . Artifact . | . . . . . . . Weapon 43 | 3 . 9 5 8 15 3 Energy Gun 4 | . . 1 1 . 1 1 Energy Cannon 9 | . . 2 . 3 4 . Ballistic Gun 15 | 3 . 5 2 . 4 1 Ballistic Cannon 8 | . . . 2 2 4 . Launcher 2 | . . . . 2 . . Special Weapon . | . . . . . . . Impact Weapon . | . . . . . . . Slashing Weapon 5 | . . 1 . 1 2 1 Piercing Weapon . | . . . . . . . Special Melee Weapon . | . . . . . . . Unidentified Prototypes 1 | . . . . . 1 . Parts Lost 40 | . . 6 2 9 9 14 Power 9 | . . 1 1 3 . 4 Propulsion 9 | . . 1 . 1 4 3 Utility 11 | . . . 1 4 4 2 Weapon 11 | . . 4 . 1 1 5 Highest Loss Streak 8 | . . 3 1 3 3 8 To Critical Strikes . | . . . . . . . Average Slot Usage (%) 93 | . 94 98 99 97 84 80 Engine 7 | . 14 11 10 7 3 . Core 1 | . . . . . 3 5 Treads 17 | . 28 21 21 17 13 4 Device 15 | . 2 21 17 9 18 12 Storage 9 | . 14 11 11 9 7 4 Processor 20 | . 6 11 15 26 25 31 Hackware 1 | . . . . 8 . 1 Energy Cannon 2 | . . 7 . 5 1 . Ballistic Gun 7 | . 28 12 7 . 4 5 Ballistic Cannon 7 | . . . 11 11 4 10 Peak Build Rating 51 | 6 8 14 18 32 48 51 Average Rating 24 | 4 6 11 16 26 38 42 On Entrance 16 | . 6 8 13 18 32 39 Naked Turns . | . . . . . . . Heaviest Build 52 | 14 15 35 37 43 52 43 Greatest Support 46 | 40 40 43 46 43 45 30 Greatest Overweight (x) 4 | 1 . 1 1 1 1 4 Average Overweight (x) . | . . . . . . . Largest Inventory Capacity 15 | 8 8 15 15 15 15 15 Average Capacity 13 | 7 8 12 15 15 15 12 Most Carried 15 | 3 8 15 15 15 15 15 Average Carried 13 | 1 4 11 14 14 14 12 Final Capacity 15 | 8 8 15 15 15 15 5 Final Carried 15 | 2 8 15 15 14 14 2 Class Distribution -------------------- 44% | Scavenger-Mutant 32% | Mutant 7% | Commander-Mutant 5% | Gunner 5% | Scavenger-Tank 4% | Scavenger-Gunner Dominant Class ---------------- Mutant | -10/Materials Scavenger-Mutant | -9/Materials Scavenger-Mutant | -9/Storage Mutant | -8/Materials Scavenger-Mutant | -7/Factory Scavenger-Gunner | -6/Factory Resources | -11 -10 -9 -9 -8 -7 -6 ----------- Run | Yrd Mat Mat Sto Mat Fac Fac Matter Collected 3125 | 198 248 395 599 663 939 83 Remotely . | . . . . . . . Salvage Created 4757 | . 363 790 1189 903 1052 460 Parts 279 | . 25 47 79 62 49 17 Haulers Intercepted 7 | . . . 4 1 1 1 Recyclers Shooed 10 | . 3 . 3 1 2 1 Parts Field Recycled . | . . . . . . . Retrieved Matter . | . . . . . . . Parts Self-Destructed . | . . . . . . . Prevented . | . . . . . . . Kills | -11 -10 -9 -9 -8 -7 -6 ------- Run | Yrd Mat Mat Sto Mat Fac Fac Combat Hostiles Destroyed 79 | . 6 12 15 25 16 5 Melee 4 | . . 1 . 1 1 1 Guns 27 | . 6 2 13 . 2 4 Cannons 43 | . . 8 2 20 13 . AOE 4 | . . . . 4 . . Classes Destroyed 17 | . 5 3 4 4 1 . Worker 12 | . . 3 8 . 1 . Builder 3 | . 1 . 1 . 1 . Tunneler 3 | . 1 . . 1 1 . Hauler 7 | . . . 4 1 1 1 Recycler 11 | . 1 1 3 2 4 . Mechanic 1 | . . . . 1 . . Operator 5 | . . . 4 1 . . Watcher 10 | . 1 2 2 2 2 1 Swarmer 12 | . . . 3 8 1 . Grunt 44 | . 6 6 7 9 11 5 Brawler 2 | . . . 1 . 1 . Duelist 1 | . . 1 . . . . Sentry 14 | . . 5 4 4 1 . Specialist 2 | . . . . 2 . . Hunter 1 | . . . . 1 . . Programmer 2 | . . . . . 2 . Heavy 1 | . . . . 1 . . Best Kill Streak 7 | . 4 3 6 7 5 4 Combat Bots Only 6 | . 2 3 4 6 3 4 Max Kills in Single Turn 3 | . 1 2 2 3 2 2 Gunslinging . | . . . . . . . Exploded 2 | . . . . 2 . . Melee 1 | . . 1 . 1 1 1 Uniques/NPCs Destroyed . | . . . . . . . Combat | -11 -10 -9 -9 -8 -7 -6 -------- Run | Yrd Mat Mat Sto Mat Fac Fac Hostile Shots Fired 653 | . 28 106 57 156 159 147 Missed 173 | . 2 33 15 44 42 37 Damage Taken 7516 | . 294 1105 557 1996 1675 1889 Core 1666 | . 54 119 58 232 338 865 Absorbed by Shields 112 | . . . . . 112 . Regen/Repaired (Parts) 107 | . . . 107 . . . Core Remaining (%) 68 | 100 78 . 55 57 51 . Volleys Fired 327 | . 26 57 86 74 62 22 Largest 3 | . 2 2 2 2 3 3 Hottest 144 | . 40 88 79 99 144 121 Shots Fired 669 | . 52 102 169 144 172 30 Gun 338 | . 52 64 136 . 64 22 Cannon 327 | . . 38 33 140 108 8 Launcher 4 | . . . . 4 . . Special . | . . . . . . . Kinetic 520 | . 52 60 133 107 145 23 Thermal 145 | . . 42 36 33 27 7 Explosive 4 | . . . . 4 . . Electromagnetic . | . . . . . . . Robot Hit Streak 13 | . 11 9 7 13 10 11 Robot Miss Streak 5 | . 1 5 4 4 4 2 Penetration Max 1 | . . . . . 1 1 Secondary Targets 1 | . . . 1 . . . Max Gunslinging Chain 1 | . . . 1 . . . Shots Hit Robots 432 | . 39 70 91 104 106 22 Core Hits 196 | . 15 26 45 54 41 15 Critical Kills 6 | . . 1 1 . . 4 Critical Parts Destroyed 3 | . . . . . 1 2 Critical Strikes 25 | . . 1 8 5 5 6 Burn 5 | . . . 5 . . . Meltdown 1 | . . 1 . . . . Destroy 8 | . . . 1 . 1 6 Blast 11 | . . . 2 5 4 . Melee Attacks 24 | . . 6 . 8 7 3 Impact . | . . . . . . . Slashing 24 | . . 6 . 8 7 3 Piercing . | . . . . . . . Sneak Attacks . | . . . . . . . Combat Hostiles . | . . . . . . . Follow-up Attacks . | . . . . . . . Damage Inflicted 8750 | . 512 1116 1527 2648 2625 322 Guns 3087 | . 512 469 1169 . 731 206 Cannons 4795 | . . 490 354 2201 1668 82 Explosions 337 | . . . . 337 . . Melee 527 | . . 157 . 110 226 34 Ramming 4 | . . . 4 . . . Kinetic 5910 | . 512 409 1218 1551 2009 211 Thermal 1972 | . . 550 305 650 390 77 Explosive 337 | . . . . 337 . . Electromagnetic . | . . . . . . . Impact . | . . . . . . . Slashing 527 | . . 157 . 110 226 34 Piercing . | . . . . . . . Highest Corruption 2 | . . . 1 . 2 . Average Corruption 1 | . . . 1 . 2 . Corruption Purged . | . . . . . . . Corruption Blocked . | . . . . . . . Effects 9 | . . . 8 . 1 . Message Errors 1 | . . . 1 . . . Matter Fused 4 | . . . 3 . 1 . Heat Flow Errors 2 | . . . 2 . . . Energy Discharges 1 | . . . 1 . . . Misfires 1 | . . . 1 . . . Overload Shots . | . . . . . . . Overflow Damage 128 | . . 7 . 18 48 55 Projectiles 34 | . . . . 18 16 . Explosions 55 | . . . . . . 55 Melee 39 | . . 7 . . 32 . Knockbacks 30 | . . . 4 12 14 . Impact . | . . . . . . . Kinetic 28 | . . . 3 11 14 . Secondary 2 | . . . 1 1 . . Self-Inflicted Damage 147 | . . . . 7 . 140 Shots 3 | . . . . 1 . 2 Rammed 2 | . . . 2 . . . Targets Rammed 3 | . . . 3 . . . Kicked . | . . . . . . . Crushed 1 | . . . 1 . . . Highest Temperature 818 | . 2 90 107 135 818 150 Average Temperature 113 | . 2 29 43 63 189 52 Received Heat Transfer 1945 | . 162 414 180 441 559 189 Effects 23 | . . . . . 23 . Shutdowns 5 | . . . . . 5 . Energy Bleed 3 | . . . . . 3 . Interference 2 | . . . . . 2 . Short Circuit 2 | . . . . . 2 . Damage (minor) 1 | . . . . . 1 . Damage (major) 9 | . . . . . 9 . Damage (core) 1 | . . . . . 1 . Siege Activations . | . . . . . . . Robots Corrupted . | . . . . . . . Combat Hostiles . | . . . . . . . Parts Fried . | . . . . . . . Impact Corruptions . | . . . . . . . Robots Melted 1 | . . 1 . . . . Combat Hostiles 1 | . . 1 . . . . Parts Melted 5 | . . 2 1 . 2 . Heat Transferred 4265 | . . 1184 1147 1036 750 148 Parts Sabotaged . | . . . . . . . Parts Stolen . | . . . . . . . Parts Stripped . | . . . . . . . Power Chain Reactions . | . . . . . . . Alert | -11 -10 -9 -9 -8 -7 -6 ------- Run | Yrd Mat Mat Sto Mat Fac Fac Peak Influence 434 | . 159 186 434 427 372 263 Initial 170 | . . 25 78 170 151 151 Average 188 | . 68 99 320 245 132 140 Maximum Alert Level 2 | . . . 2 2 1 1 Low Security (%) 60 | 100 100 100 13 37 75 94 Level 1 32 | . . . 58 59 24 5 Level 2 7 | . . . 28 3 . . Level 3 . | . . . . . . . Level 4 . | . . . . . . . Level 5 . | . . . . . . . High Security . | . . . . . . . Max Security . | . . . . . . . Squads Dispatched 26 | . 2 . 8 5 9 2 Investigation 7 | . . . 3 2 1 1 Extermination 2 | . . . . . 2 . Reinforcement 13 | . 2 . 4 3 3 1 Assault . | . . . . . . . Garrison 4 | . . . 1 . 3 . Intercept . | . . . . . . . Searches Triggered . | . . . . . . . Construction Impeded . | . . . . . . . Haulers Reinforced 2 | . . . . . 1 1 Active Scanning Responses . | . . . . . . . Cargo Convoy Interrupts . | . . . . . . . Stealth | -11 -10 -9 -9 -8 -7 -6 --------- Run | Yrd Mat Mat Sto Mat Fac Fac Distress Signals 10 | . . . 1 5 4 . Communications Jammed . | . . . . . . . Distress Signals . | . . . . . . . Times Spotted 141 | . 9 19 35 41 27 10 Peak Tracking Total 8 | . 2 4 5 8 5 6 Tactical Retreats 9 | . . 1 3 1 3 1 Traps | -11 -10 -9 -9 -8 -7 -6 ------- Run | Yrd Mat Mat Sto Mat Fac Fac Traps Triggered 4 | . . . 2 . 2 . Indirectly . | . . . . . . . Trap Hack Attempts . | . . . . . . . Triggered . | . . . . . . . Disarmed . | . . . . . . . Reprogrammed . | . . . . . . . Reused . | . . . . . . . Traps Extracted . | . . . . . . . Installed . | . . . . . . . Triggered . | . . . . . . . Machines | -11 -10 -9 -9 -8 -7 -6 ---------- Run | Yrd Mat Mat Sto Mat Fac Fac Machines Disabled 15 | . . 1 1 2 1 10 Max in Single Turn 10 | . . 1 1 1 1 10 Garrison Access 3 | . . . 1 1 1 . Machines Repaired . | . . . . . . . Machines Dismantled . | . . . . . . . Machines Sabotaged . | . . . . . . . Overloaded Fab Kills . | . . . . . . . Hacking | -11 -10 -9 -9 -8 -7 -6 --------- Run | Yrd Mat Mat Sto Mat Fac Fac Machines Accessed 20 | . . 2 8 5 3 2 Terminals 12 | . . 2 6 3 . 1 Fabricators 1 | . . . . . . 1 Repair Stations 2 | . . . 1 . 1 . Recycling Units . | . . . . . . . Scanalyzers 1 | . . . . 1 . . Garrison Access 4 | . . . 1 1 2 . Total Hacks 52 | . . 5 19 14 10 4 Successful 24 | . . 4 9 6 2 3 Failed 28 | . . 1 10 8 8 1 Catastrophic 6 | . . . 3 2 1 . Database Lockouts . | . . . . . . . Manual . | . . . . . . . Terminals 29 | . . 5 14 9 . 1 Fabricators 3 | . . . . . . 3 Repair Stations 7 | . . . 4 . 3 . Recycling Units . | . . . . . . . Scanalyzers 3 | . . . . 3 . . Garrison Access 10 | . . . 1 2 7 . Terminal Hacks 13 | . . 4 6 2 . 1 Record 1 | . . . . . . 1 Robot Analysis 2 | . . . 1 1 . . Open Door 3 | . . . 3 . . . Alert Level 1 | . . . 1 . . . Locate Traps 1 | . . 1 . . . . Dispatch Records 3 | . . 2 1 . . . Hauler Manifests 1 | . . 1 . . . . Zone Layout 1 | . . . . 1 . . Fabricator Hacks 2 | . . . . . . 2 Load Schematic 1 | . . . . . . 1 Build 1 | . . . . . . 1 Repair Station Hacks 3 | . . . 2 . 1 . Scan Component 2 | . . . 1 . 1 . Repair 1 | . . . 1 . . . Recycling Unit Hacks . | . . . . . . . Scanalyzer 3 | . . . . 3 . . Insert Component 2 | . . . . 2 . . Analyze 1 | . . . . 1 . . Garrison Access Hacks 3 | . . . 1 1 1 . Seal Access 3 | . . . 1 1 1 . Unauthorized Hacks . | . . . . . . . Terminals . | . . . . . . . Fabricators . | . . . . . . . Repair Stations . | . . . . . . . Recycling Units . | . . . . . . . Scanalyzers . | . . . . . . . Garrison Access . | . . . . . . . Data Cores Recovered . | . . . . . . . Used . | . . . . . . . Hacking Detections 14 | . . 2 4 3 3 2 Full Trace Events 8 | . . . 4 2 1 1 Feedback Events 1 | . . . 1 . . . Corruption 1 | . . . 1 . . . Feedback Blocked . | . . . . . . . Robot Schematics Acquired . | . . . . . . . Robots Built . | . . . . . . . Authchips . | . . . . . . . Time . | . . . . . . . Total Robot Build Rating . | . . . . . . . Part Schematics Acquired 1 | . . . . 1 . . Parts Built . | . . . . . . . Authchips . | . . . . . . . Time 36 | . . . . . . 36 Total Part Build Rating . | . . . . . . . Parts Repaired 1 | . . . 1 . . . Time 16 | . . . 16 . . . Parts Recycled . | . . . . . . . Recycled Matter . | . . . . . . . Retrieved Matter . | . . . . . . . Retrieved Components . | . . . . . . . Parts Scanalyzed 1 | . . . . 1 . . Part Schematics Acquired 1 | . . . . 1 . . Parts Damaged . | . . . . . . . Bothacking | -11 -10 -9 -9 -8 -7 -6 ------------ Run | Yrd Mat Mat Sto Mat Fac Fac Used RIF Installer . | . . . . . . . Robots Hacked . | . . . . . . . Non-combat . | . . . . . . . Combat . | . . . . . . . Robot Hacks Applied . | . . . . . . . Relay Couplers Released . | . . . . . . . Fabnet Peak Effective % . | . . . . . . . Robots Rewired . | . . . . . . . Allies Hacked . | . . . . . . . Hacks Repelled . | . . . . . . . Allies | -11 -10 -9 -9 -8 -7 -6 -------- Run | Yrd Mat Mat Sto Mat Fac Fac Total Allies 13 | . . . 10 . 3 . Largest Group 10 | . . . 10 7 3 . Highest-Rated Group 93 | . . . 88 64 93 . Highest-Rated Ally 31 | . . . 16 16 31 . Total Orders . | . . . . . . . Ally Attacks 102 | . . . 47 27 28 . Total Damage 1087 | . . . 427 273 387 . Kills 10 | . . . 5 2 3 . Allies Corrupted . | . . . . . . . Allies Melted . | . . . . . . . Intel | -11 -10 -9 -9 -8 -7 -6 ------- Run | Yrd Mat Mat Sto Mat Fac Fac Robot Analysis Total 2 | . . . 1 1 . . Derelict Logs Recovered . | . . . . . . . Drone Launches . | . . . . . . . Drone Recoveries . | . . . . . . . Exploration | -11 -10 -9 -9 -8 -7 -6 ------------- Run | Yrd Mat Mat Sto Mat Fac Fac Turns Passed 7477 | 99 489 1058 1788 1398 2019 626 Spaces Moved 3418 | 65 215 462 855 596 938 287 Core 71 | 20 . . . . . 51 Treads 3311 | 45 215 462 855 596 938 200 Legs 36 | . . . . . . 36 Wheels . | . . . . . . . Hover . | . . . . . . . Flight . | . . . . . . . Fastest Speed 50 | 50 160 160 160 160 152 50 Average Speed 168 | 134 160 167 160 170 175 178 Slowest Speed 250 | 160 160 240 240 250 250 250 Overloaded Moves . | . . . . . . . Propulsion Burnouts . | . . . . . . . Robots Hopped . | . . . . . . . Cave-ins Triggered . | . . . . . . . Exploration Rate (%) 36 | 4 43 31 95 45 26 9 Regions Visited 6 Branch Regions 1 Pre-discovered Areas . | . . . . . . . Known Exits Taken 5 | . 1 1 1 1 1 . Unknown Exits Taken 1 | 1 . . . . . . Scrap Searched . | . . . . . . . Spaces Dug . | . . . . . . . Terrain Destroyed 83 | . . . 2 17 22 42 Melee . | . . . . . . . Projectile 31 | . . . 2 7 22 . AOE 51 | . . . . 10 . 41 Terrain Rammed . | . . . . . . . Walls Destroyed . | . . . . . . . Machines Disabled . | . . . . . . . Actions | -11 -10 -9 -9 -8 -7 -6 --------- Run | Yrd Mat Mat Sto Mat Fac Fac Total 4537 | 74 307 641 1120 829 1193 373 Wait 475 | . 59 49 123 100 105 39 Move 3412 | 64 214 461 854 595 937 287 Hop . | . . . . . . . Pick Up 84 | 3 6 21 15 16 21 2 Fast Attach 27 | 5 1 1 3 2 5 10 Attach 48 | 1 . 7 3 11 20 6 Detach 12 | . . . . . 10 2 Swap 52 | 1 1 19 10 11 9 1 Drop 70 | . . 20 20 12 17 1 Fire 327 | . 26 57 86 74 62 22 Melee 24 | . . 6 . 8 7 3 Ram . | . . . . . . . Kick . | . . . . . . . Crush 3 | . . . 3 . . . Escape Stasis . | . . . . . . . Rewire 3 | . . . 3 . . . Trap . | . . . . . . . Miscellaneous . | . . . . . . . Route ------- -11/Scrapyard -10/Materials -9/Materials (discovered 2 exits: *Sto x2) -9/Storage -8/Materials -7/Factory -6/Factory History --------- Turn | Location | Event 17 | -11/Scrapyard | Discovered new exit (range 15) 100 | -11/Scrapyard | Entered Materials 318 | -10/Materials | Build established: Mutant 570 | -10/Materials | Discovered new exit (range 10) 587 | -10/Materials | Identified exit to Materials 589 | -10/Materials | Entered another Materials area 589 | -9/Materials | Evolved 2 slots: Utility x2 1121 | -9/Materials | Lost 3 parts (1n2w) 1331 | -9/Materials | Build established: Scavenger-Mutant 1496 | -9/Materials | Discovered new exit (range 15) 1595 | -9/Materials | Identified exit to Storage 1597 | -9/Materials | Discovered exit to Storage (range 11) 1647 | -9/Materials | Entered Storage 2056 | -9/Storage | Garrison activated, responded to threat 2947 | -9/Storage | Build established: Mutant 3067 | -9/Storage | Assisted by bots powering up and referring to "LRC-V3" 3174 | -9/Storage | Repaired Imp. Treads 3366 | -9/Storage | Build established: Commander-Mutant 3372 | -9/Storage | Discovered new exit (range 15) 3387 | -9/Storage | Lost 3 allies 3430 | -9/Storage | Identified exit to Materials 3435 | -9/Storage | Entered Materials 3435 | -8/Materials | Accompanied by 7 allies 3435 | -8/Materials | Evolved 2 slots: Utility x2 3649 | -8/Materials | Lost 7 allies 4201 | -8/Materials | Build established: Mutant 4503 | -8/Materials | Build established: Scavenger-Mutant 4730 | -8/Materials | Lost 3 parts (1n2u) 4748 | -8/Materials | Discovered new exit (range 6) 4831 | -8/Materials | Identified exit to Factory 4833 | -8/Materials | Entered Factory 4833 | -7/Factory | Evolved 2 slots: Utility x1, Weapon x1 4973 | -7/Factory | Allied Derelicts emerged from ambush trap array 5672 | -7/Factory | Garrison activated, responded to threat 5893 | -7/Factory | Lost 3 parts (1n2u) 6149 | -7/Factory | Build established: Scavenger-Tank 6672 | -7/Factory | Garrison activated, responded to threat 6748 | -7/Factory | Discovered new exit (range 18) 6843 | -7/Factory | Identified exit to Factory 6852 | -7/Factory | Entered another Factory area 6852 | -6/Factory | Evolved 2 slots: Utility x2 6952 | -6/Factory | Build established: Gunner 7379 | -6/Factory | Lost 6 parts (2p1n3w) 7428 | -6/Factory | Core integrity fell below 50% 7456 | -6/Factory | Core integrity fell below 20% 7478 | -6/Factory | Destroyed by H-66 Slayer with Gauss Rifle Last Messages --------------- 07462_ U-05 Engineer builds a Door. 07464_ Penetrated by Slug. 07464_ Hvy. Laser destroyed. 07466_ U-05 Engineer builds a Wall. 07468_ R-10 Processor collects Corrupted Adv. Heat Sink. 07470_ G-50 Soldier destroyed. 07471_ U-05 Engineer lays Concrete. 07471_ Penetrated by Slug. 07471_ Slug penetrates Wall. 07472_ U-05 Engineer lays Concrete. 07472_ Slug penetrates Wall. 07473_ U-05 Engineer lays Concrete. 07474_ Acquired Carbon-fiber Leg. 07475_ U-05 Engineer lays Concrete. 07476_ Wall collapses. 07476_ U-05 Engineer lays Concrete. 07476_ Acquired Carbon-fiber Leg. 07477_ U-05 Engineer lays Concrete. 07478_ Slug penetrates Wall. Map ----- +----------------------------------------------------+ | ?????????????????????????????????????????????????? | | ?????????????????????????????????????????????????? | | ?????????????????????????????????????????????????? | | ???????????????????????"""???????????????????????? | | ???????????????????????"""???????????????????????? | | ???????????????????????"""???????????????????????? | | ?????????????????????????????????????????????????? | | ???????????????????????"""???????????????????????? | | ???????????????????????"""???????????????????????? | | ???????????????????????"""???????????????????????? | | ?????????????????????????????????????????????????? | | ???????????????????????????????????"""?"""??????## | | ???????????????????????????????????"""?"""??????# | | ???????????????????????????? ??#?"""?"""??????# | | ???????????????????????????? #??????????????# | | ???????????????????????????? +??????????????# | | ???????????????????????????? #??????????????# | | ???????????????????????????? #??????????????# | | ????????????????????#####+## #???????######## | | ????????????????????# # #???????# | | ????????????????????# # #?###???# | | ????????????????????# # # ????# | | ????????????????????# """ R # """???# | | ????????????????????# """ R# " """???# ^ | | ????????????????????# """ R# #?"""???# | | ????????????????????# @%# #???????# | | ????????????????????# *%!# #?"""???# """ | | ??????????????????######;/## #?"""???# """ | | ??????????????????# h#% # """ # """ | | ??????????????????# h %+ + # """ | | ??????????????????# u# #???????# """ | | ??????????????????# # #???????# """ | | ??????????????????#= # ######### | | ??????????????????# [ * # | | ??????????????????#[==* # | | ??????????????????# "! # | | ??????????????????# """ # | | ??????????????????########## | | ????????????????????????#######+######+########## | | ????????????????????????# # #????# | | ????????????????????????# "" "" # #????# | | ????????????????????????# "" "" # #????# | | ????????????????????????# """ """ / #????# | | ????????????????????????# """ """ # #????# | | ????????????????????????# """ """ # +???? | | ????????????????????????# # ! #????## | | ????????????????????????+ """T""" # #?????? | | ???????????????????????############ ! #?????? | | ??????????????????????????????????##########?????? | | ?????????????????????????????????????????????????? | +----------------------------------------------------+ Best States ------------- Heat Dissipation 45 Coolant Potential 65 Energy Generation 25 Energy Capacity 290 Matter Stores 300 Matter Capacity 300 Sight Range 18 Robot Scan Range 14 Terrain Scan Density 10 Base Temperature (-) 100 Weapon Cycling 15 Evasion (%) 57 Targeting Accuracy 8 Melee Accuracy 6 Target Analysis 7 Recoil Reduction 6 Offensive Hacking 10 Item Schematics ----------------- Arm. Treads | -8/Materials | Scanalyzed Robot Schematics ------------------ None Fabricated ------------ Nothing Alien Tech Used ----------------- None Achievements -------------- None Challenges ------------ None Game ------ Seed TacticalCompactNanosword Manual? 0 Play Time 02:00:56 Cumulative 109.2 hours Start 2024.10.01 @ 19:00:56 End 2024.10.03 @ 19:41:28 Sessions 5 Manual Loads 0 Difficulty Rogue Special Mode None Game No. 94 Rogue 94 Adventurer 0 Explorer 0 Win Type - Total 0 Types 0/0/0/0/0/0/0/0/0 Lore% 15 Gallery% 40 Achievement% 25 Wizard Run 0 Options --------- Layout 1 ASCII 0 Keyboard 1 Movement Arrows Keybinds 0 Fullscreen 1 Font 32/SmallcapsGlow Map View 50x35 Zoom Use 0% Tactical HUD 1 Map Filters NONE Filters NONE Steam 1 RUN: c91ebef6-aa7b-4665-a6f1-03bd627ffcba